bitfinex/quotes_ETHUSD_20251031
["timestamp","ask_amount","ask_price","bid_price","bid_amount"]
[1761903380198,1.82003227,3848.2,3848.1,0.2949]
[1761903380941,0.001,3848.2,3848.1,0.2949]
[1761903381217,1.82003227,3848.2,3848.1,0.2949]
[1761903381621,1.82003227,3848.2,3848.1,0.012]
[1761903382017,2.27043227,3848.2,3848.1,0.012]
[1761903382218,1.82003227,3848.2,3848.1,0.012]
[1761903382420,0.001,3848.2,3848.1,0.2949]
[1761903382590,1.82003227,3848.2,3848.1,0.2949]
[1761903382796,0.001,3848.2,3848.1,0.2949]
[1761903382996,1.82003227,3848.2,3848.1,0.2949]
[1761903386918,0.001,3848.2,3848.1,0.2949]
[1761903387306,0.001,3848.2,3848.1,0.7074]
[1761903387712,0.001,3848.2,3848.1,0.99215066]
[1761903388895,0.0002,3848.2,3848.1,0.99215066]
[1761903389098,0.0002,3848.2,3848.1,0.42635066]
[1761903389297,0.9273,3848.2,3848.1,0.012]
[1761903389497,0.0002,3848.2,3848.1,0.012]
[1761903389950,1.81923227,3848.2,3848.1,0.012]
[1761903390834,0.0002,3848.2,3848.1,0.5778]
[1761903391227,0.0002,3848.2,3848.1,0.82009498]
[1761903392115,0.0002,3848.2,3848.1,0.5778]
[1761903393916,0.0002,3848.2,3848.1,3.82254639]
[1761903395254,0.0002,3848.2,3848.1,1.97748]
[1761903395952,0.0002,3848.2,3848.1,0.2949]
[1761903397649,0.0002,3848.2,3848.1,0.012]
[1761903398045,0.0002,3848.2,3848.1,0.2949]
[1761903399125,0.0002,3848.2,3848.1,0.012]
[1761903399721,0.4506,3848.2,3848.1,0.012]
[1761903400564,2.26963227,3848.2,3848.1,0.012]
[1761903400727,2.74633227,3848.2,3848.1,0.012]
[1761903400927,1.81923227,3848.2,3848.1,0.012]
[1761903401127,2.26963227,3848.2,3848.1,0.012]
[1761903401338,2.74633227,3848.2,3848.1,0.012]
[1761903404153,2.26963227,3848.2,3848.1,0.012]
[1761903404843,2.74633227,3848.2,3848.1,0.012]
[1761903407758,2.26963227,3848.2,3848.1,0.012]
[1761903408170,2.74633227,3848.2,3848.1,0.012]
[1761903409952,0.4506,3848.2,3848.1,0.012]
[1761903410154,0.0002,3848.2,3848.1,0.012]
[1761903411368,1.81923227,3848.2,3848.1,0.012]
[1761903412075,2.28383227,3848.2,3848.1,0.012]
[1761903412280,2.74883227,3848.2,3848.1,0.012]
[1761903413774,2.28383227,3848.2,3848.1,0.012]
[1761903414380,2.28303227,3848.2,3848.1,0.012]
[1761903415408,2.74803227,3848.2,3848.1,0.012]
[1761903415973,0.9296,3848.2,3848.1,0.012]
[1761903416196,0.1296,3848.5,3848.1,0.2949]
[1761903416913,1.81893774,3848.4,3848.1,0.2949]
[1761903417574,1.94849107,3848.5,3848.1,0.2949]
[1761903417771,0.1296,3848.5,3848.1,0.2949]
[1761903417972,1.9485037,3848.5,3848.1,0.2949]
[1761903418976,0.001,3848.6,3848.4,0.4125]
[1761903419188,0.001,3848.6,3848.5,0.2829]
[1761903419388,0.001,3848.6,3848.5,0.53434284]
[1761903419914,0.001,3848.6,3848.5,0.8607]
[1761903421086,0.4656,3848.6,3848.5,0.5778]
[1761903421414,2.28444331,3848.6,3848.4,0.1296]
[1761903421611,2.28444331,3848.6,3848.4,0.7074]
[1761903423090,2.74849047,3848.5,3848.4,0.1296]
[1761903423286,0.4646,3848.5,3848.4,0.1296]
[1761903423520,2.28349047,3848.5,3848.4,0.1296]
[1761903424015,2.74849047,3848.5,3848.4,0.1296]
[1761903424513,1.81903227,3848.2,3848.1,0.012]
[1761903424712,2.28363227,3848.2,3848.1,0.012]
[1761903424882,2.28363227,3848.2,3848.1,0.1416]
[1761903425996,0.4646,3848.2,3848.1,0.1416]
[1761903427416,2.74863227,3848.2,3848.1,0.1416]
[1761903427813,0.9296,3848.2,3848.1,0.1416]
[1761903428000,2.74863227,3848.2,3848.1,0.1416]
[1761903428913,0.9296,3848.2,3848.1,0.1416]
[1761903429113,2.74863227,3848.2,3848.1,0.1416]
[1761903430107,2.74963227,3848.2,3848.1,0.1416]
[1761903431812,2.28463227,3848.2,3848.1,0.012]
[1761903432125,0.001,3848.2,3848.1,0.7074]
[1761903432531,0.001,3848.2,3848.1,0.96005368]
[1761903433286,0.001,3848.2,3848.1,0.7074]
[1761903434835,0.001,3848.2,3848.1,2.55246639]
[1761903435041,0.001,3848.2,3848.1,0.73338685]
[1761903437840,0.001,3848.2,3848.1,0.7074]
[1761903438446,0.001,3848.2,3848.1,2.52647954]
[1761903438743,0.001,3848.2,3848.1,2.8572168]
[1761903438916,0.001,3848.2,3848.1,1.03813726]
[1761903439122,0.001,3848.2,3848.1,2.88320365]
[1761903439304,0.001,3848.2,3848.1,1.03813726]
[1761903439511,0.0002,3848.2,3848.1,1.03813726]
[1761903440624,0.0002,3848.2,3848.1,2.8572168]
[1761903440916,0.0002,3848.2,3848.1,1.81903036]
[1761903444346,0.0002,3848.2,3848.1,1.53613036]
[1761903444514,0.0002,3848.2,3848.1,3.6381099]
[1761903444850,0.0002,3848.2,3848.1,3.66409675]
[1761903445728,0.0002,3848.2,3848.1,3.6381099]
[1761903446146,0.0002,3848.2,3848.1,1.81903036]
[1761903446332,0.0002,3848.2,3848.1,1.84501721]
[1761903446532,0.0002,3848.2,3848.1,3.66409675]
[1761903446851,0.0002,3848.2,3848.1,5.06377675]
[1761903448134,0.0002,3848.2,3848.1,5.46928075]
[1761903448333,0.0002,3848.2,3848.1,5.4432939]
[1761903455773,0.0002,3848.2,3848.1,4.0436139]
[1761903456859,0.0002,3848.2,3848.1,3.3552099]
[1761903457060,0.0002,3848.2,3848.1,4.7548899]
[1761903457264,0.0002,3848.2,3848.1,5.0377899]
[1761903457468,0.0002,3848.2,3848.1,5.06377675]
[1761903457642,0.0002,3848.2,3848.1,5.0377899]
[1761903458477,0.0002,3848.2,3848.1,5.06377675]
[1761903459177,0.0002,3848.2,3848.1,5.0377899]
[1761903459362,0.0002,3848.2,3848.1,3.21871036]
[1761903459577,0.0002,3848.2,3848.1,5.0377899]
[1761903461204,0.0002,3848.2,3848.1,4.7548899]
[1761903461617,0.0002,3848.2,3848.1,5.0377899]
[1761903461817,0.0002,3848.2,3848.1,5.06377675]
[1761903462474,0.0002,3848.2,3848.1,5.0377899]
[1761903463393,0.0002,3848.2,3848.1,4.7548899]
[1761903464656,0.4731,3848.6,3848.2,3.21870747]
[1761903464657,0.4725,3848.6,3848.2,3.21870747]
[1761903464883,0.4725,3848.6,3848.2,3.86314747]
[1761903465094,0.4725,3848.6,3848.5,0.1296]
[1761903465576,0.961,3848.6,3848.5,0.1296]
[1761903466096,0.4889,3848.6,3848.5,0.1296]
[1761903466412,0.0004,3848.6,3848.5,2.70389488]
[1761903466711,0.0004,3848.6,3848.5,4.63639474]
[1761903467303,0.0004,3848.6,3848.5,5.13447888]
[1761903468311,0.0004,3848.6,3848.5,5.10849474]
[1761903471818,0.001,3849.0,3848.9,2.22420544]
[1761903472118,0.001,3849.0,3848.9,9.79085365]
[1761903472282,0.001,3849.0,3848.9,10.07375365]
[1761903472484,0.001,3849.0,3848.9,10.17782072]
[1761903473196,0.001,3849.0,3848.9,4.69805003]
[1761903473401,0.001,3849.0,3848.9,4.41515003]
[1761903473818,0.001,3849.0,3848.9,4.72403147]
[1761903476695,0.001,3849.0,3848.9,4.85363147]
[1761903477289,0.001,3849.0,3848.9,4.82765003]
[1761903477622,0.001,3849.0,3848.9,4.54475003]
[1761903478509,0.001,3849.0,3848.9,4.82765003]
[1761903478685,0.001,3849.0,3848.9,4.26185003]
[1761903479089,0.001,3849.0,3848.9,4.54475003]
[1761903479721,0.001,3849.0,3848.9,4.26185003]
[1761903481089,0.001,3849.0,3848.9,4.54475003]
[1761903481898,0.001,3849.0,3848.9,4.82765003]
[1761903482320,0.001,3849.0,3848.9,4.54475003]
[1761903483099,0.001,3849.0,3848.9,8.39475003]
[1761903485442,0.001,3849.0,3848.9,8.11185003]
[1761903485658,0.4991,3849.0,3848.9,4.48796459]
[1761903485937,0.9802,3849.0,3848.9,5.48334707]
[1761903486316,0.001,3849.0,3848.9,7.99045251]
[1761903486532,0.001,3849.0,3848.9,8.27335251]
[1761903486732,0.001,3849.0,3848.9,4.42335251]
[1761903487043,0.001,3849.0,3848.9,6.006525]
[1761903487246,0.001,3849.0,3848.9,5.98054356]
[1761903489707,0.0002,3849.0,3848.9,5.98054356]
[1761903491432,0.0002,3849.0,3848.9,10.84478579]
[1761903491820,0.0002,3849.0,3848.9,14.69478579]
[1761903495065,0.001,3849.8,3848.9,14.69478579]
[1761903495066,0.001,3849.8,3849.3,2.22401645]
[1761903495263,0.001,3849.8,3849.7,7.37096973]
[1761903495449,0.001,3849.8,3849.7,8.90024973]
[1761903495650,0.001,3849.8,3849.7,9.18314973]
[1761903495857,0.001,3849.8,3849.7,9.28719514]
[1761903497443,0.001,3850.1,3850.0,2.22368581]
[1761903497653,0.001,3850.1,3850.0,10.04698041]
[1761903497839,0.001,3850.1,3850.0,10.43350639]
[1761903498165,0.001,3850.1,3850.0,10.53754666]
[1761903498630,0.001,3850.1,3850.0,10.25464666]
[1761903500665,0.001,3850.1,3850.0,9.86770639]
[1761903500886,0.9489,3850.1,3850.0,9.46220239]
[1761903501377,0.9489,3850.1,3850.0,9.86770639]
[1761903504642,0.9489,3850.1,3849.9,0.405504]
[1761903504837,0.4679,3850.0,3849.9,0.405504]
[1761903505059,1.1291,3850.0,3849.9,2.22373304]
[1761903505964,1.1291,3850.0,3849.9,1.81822904]
[1761903506509,1.1291,3850.0,3849.8,1.81827624]
[1761903506706,0.4679,3849.9,3849.6,3.2180503]
[1761903506992,0.48,3849.7,3849.5,1.81841797]
[1761903507164,0.4679,3849.9,3849.5,1.81841797]
[1761903507368,0.48,3849.6,3849.5,1.81841797]
[1761903507566,0.48,3849.6,3849.4,1.39968]
[1761903507761,0.9479,3849.5,3849.4,3.62364921]
[1761903507959,0.9479,3849.5,3849.4,4.65429387]
[1761903510665,0.9479,3849.5,3849.4,2.43032466]
[1761903510861,0.9479,3849.5,3849.4,1.39968]
[1761903511102,0.9479,3849.5,3849.4,3.21814521]
[1761903514303,0.001,3850.1,3850.0,1.81818181]
[1761903514709,0.481,3850.1,3850.0,1.97375583]
[1761903514890,0.481,3850.1,3850.0,1.94778181]
[1761903515093,0.9481,3850.1,3850.0,1.94778181]
[1761903515809,0.9481,3850.1,3850.0,0.1296]
[1761903516007,0.9481,3850.1,3850.0,1.94778181]
[1761903518379,0.9481,3850.1,3850.0,0.1296]
[1761903522636,1.81829848,3849.8,3849.4,0.002]
[1761903522842,0.6371,3849.5,3849.4,0.002]
[1761903523292,1.105,3849.5,3849.4,0.1316]
[1761903527605,2.92341797,3849.5,3849.4,0.1316]
[1761903527809,2.92341797,3849.5,3849.4,0.002]
[1761903528054,0.48,3849.5,3849.4,4.86624223]
[1761903528211,0.9479,3849.5,3849.4,5.35286645]
[1761903528752,0.9479,3849.5,3849.4,0.48862422]
[1761903528924,0.9479,3849.5,3849.4,0.002]
[1761903530056,0.9479,3849.5,3849.4,1.84644328]
[1761903530761,0.1812,3849.8,3849.7,1.8183235]
[1761903530967,0.0002,3850.1,3850.0,2.22368581]
[1761903531247,0.0002,3850.1,3850.0,9.86993431]
[1761903531444,0.0002,3850.1,3850.0,5.00569208]
[1761903531613,0.0002,3850.1,3850.0,9.86993431]
[1761903532330,0.0002,3850.1,3850.0,10.15283431]
[1761903533820,0.0002,3850.1,3850.0,10.15483431]
[1761903534242,0.0002,3850.1,3850.0,9.87193431]
[1761903536449,0.001,3850.2,3850.1,3.62331859]
[1761903536653,0.001,3850.2,3850.1,5.5942139]
[1761903536852,0.001,3850.6,3850.4,13.35166139]
[1761903537024,0.001,3850.6,3850.4,13.91746139]
[1761903537532,0.001,3850.6,3850.4,9.05321916]
[1761903538052,0.001,3850.6,3850.4,9.18281916]
[1761903538252,0.001,3850.6,3850.4,10.42081964]
[1761903538453,0.001,3850.6,3850.4,5.42697741]
[1761903538616,0.001,3850.6,3850.4,10.29121964]
[1761903540254,0.001,3850.6,3850.4,10.00831964]
[1761903540255,0.0002,3850.5,3850.4,10.00831964]
[1761903540419,0.0002,3850.5,3850.4,7.92023564]
[1761903540621,0.4552,3850.5,3850.4,9.72541964]
[1761903540826,0.9544,3850.5,3850.4,1.81799293]
[1761903541039,0.4552,3850.5,3850.4,1.81799293]
[1761903541528,0.9544,3850.5,3850.4,1.81799293]
[1761903541926,0.4552,3850.5,3850.4,6.70820648]
[1761903542245,0.0002,3850.5,3850.4,8.36481516]
[1761903542559,0.0002,3850.5,3850.4,9.38310304]
[1761903542762,0.0002,3850.5,3850.4,9.78860704]
[1761903544564,0.4552,3850.5,3850.4,4.64146481]
[1761903545228,0.9544,3850.5,3850.4,4.64146481]
[1761903546031,0.4552,3850.5,3850.4,4.64146481]
[1761903546240,0.9544,3850.5,3850.4,4.64146481]
[1761903546444,0.9544,3850.5,3850.4,3.62317693]
[1761903546831,0.9544,3850.5,3850.4,3.21767293]
[1761903548423,0.9544,3850.5,3850.4,1.52928]
[1761903548833,0.9544,3850.5,3850.4,3.34727293]
[1761903549856,0.9544,3850.5,3850.4,1.52928]
[1761903550423,0.9544,3850.5,3850.4,0.1296]
[1761903551463,2.77234572,3850.5,3850.4,0.1296]
[1761903552037,2.77234572,3850.5,3850.0,0.002]
[1761903552258,1.81804015,3850.3,3850.2,0.1296]
[1761903552452,2.77224015,3850.3,3850.2,0.1296]
[1761903552729,1.81808737,3850.2,3850.0,0.002]
[1761903552945,0.455,3850.1,3850.0,0.002]
[1761903553154,0.9542,3850.1,3850.0,0.002]
[1761903565401,0.9534,3850.1,3850.0,0.002]
[1761903569180,0.4542,3850.1,3850.0,0.1316]
[1761903569571,0.4542,3850.1,3850.0,1.94978181]
[1761903569775,0.0002,3850.5,3850.0,0.61288275]
[1761903569981,0.0002,3850.5,3850.4,0.1296]
[1761903570478,0.4615,3850.5,3850.4,0.1296]
[1761903570683,0.9297,3850.5,3850.4,0.1296]
[1761903571185,0.4615,3850.5,3850.4,0.1296]
[1761903571374,0.9297,3850.5,3850.4,0.1296]
[1761903571900,0.4615,3850.5,3850.4,0.1296]
[1761903572285,0.9297,3850.5,3850.4,0.1296]
[1761903572464,0.4615,3850.5,3850.4,0.1296]
[1761903573578,0.9297,3850.5,3850.4,0.1296]
[1761903575402,0.0002,3850.5,3850.4,0.4133]
[1761903575784,0.4615,3850.5,3850.4,0.1296]
[1761903575987,0.0002,3850.5,3850.4,0.35533543]
[1761903576183,0.9297,3850.5,3850.4,0.35533543]
[1761903577401,0.9297,3850.5,3850.4,0.1296]
[1761903580237,0.9297,3850.5,3850.0,0.002]
[1761903580516,0.4613,3850.1,3850.0,0.002]
[1761903580901,0.4613,3850.1,3850.0,0.1316]
[1761903581316,0.9295,3850.1,3850.0,0.1316]
[1761903582721,0.0002,3850.5,3850.0,0.61288474]
[1761903582901,0.0002,3850.5,3850.1,0.02597335]
[1761903583103,0.0002,3850.5,3850.4,0.1296]
[1761903583636,0.9297,3850.5,3850.4,0.1296]
[1761903583828,0.4615,3850.5,3850.4,0.1296]
[1761903584326,0.9297,3850.5,3850.4,0.1296]
[1761903587199,2.74764572,3850.5,3850.4,0.1296]
[1761903588414,1.81807906,3850.3,3850.1,0.002]
[1761903588742,0.4613,3850.2,3850.1,0.002]
[1761903588897,0.9295,3850.2,3850.1,0.002]
[1761903590606,0.9287,3850.2,3850.1,0.002]
[1761903591595,2.74678737,3850.2,3850.1,0.002]
[1761903593032,0.9287,3850.2,3850.1,0.002]
[1761903593230,0.4605,3850.2,3850.1,0.002]
[1761903593394,0.4688,3850.5,3850.1,0.002]
[1761903593600,0.4527,3850.2,3850.1,0.002]
[1761903594033,0.0002,3850.5,3850.1,0.1316]
[1761903594235,0.4688,3850.5,3850.1,0.1316]
[1761903594708,0.4527,3850.2,3850.1,0.1316]
[1761903595046,0.4688,3850.5,3850.1,0.1316]
[1761903595330,0.0002,3850.5,3850.4,0.2845]
[1761903595502,0.0002,3850.5,3850.4,0.49755585]
[1761903597309,0.0002,3850.5,3850.4,0.2845]
[1761903597815,0.0002,3850.5,3850.1,1.82012643]
[1761903599641,0.0002,3850.5,3850.2,0.02597267]
[1761903600020,0.0002,3850.5,3850.1,0.002]
[1761903600423,0.0002,3850.5,3850.1,1.82012407]
[1761903600736,0.0002,3850.5,3850.4,0.2845]
[1761903600917,0.0002,3850.5,3850.2,0.23663508]
[1761903602719,0.0002,3850.5,3850.2,0.21066241]
[1761903602923,0.0002,3850.5,3850.1,0.02797335]
[1761903603157,0.0002,3850.5,3850.1,0.002]
[1761903603328,0.4688,3850.5,3850.1,0.002]
[1761903603523,0.4527,3850.2,3850.1,0.002]
[1761903603856,0.0002,3850.5,3850.1,0.002]
[1761903603857,0.4686,3850.4,3850.1,0.002]
[1761903604368,0.4527,3850.2,3850.1,0.18421809]
[1761903604519,0.4527,3850.2,3850.1,0.002]
[1761903604721,0.9213,3850.2,3850.1,0.002]
[1761903605257,0.0002,3850.5,3850.1,0.1316]
[1761903605258,0.4688,3850.5,3850.1,0.1316]
[1761903605649,0.4688,3850.5,3850.1,0.002]
[1761903605853,0.4688,3850.5,3850.4,0.1296]
[1761903606074,0.0002,3850.5,3850.4,0.4141]
[1761903606219,0.0002,3850.5,3850.4,0.1296]
[1761903606620,0.4529,3850.5,3850.4,0.1296]
[1761903607173,0.0002,3850.5,3850.4,0.1296]
[1761903607463,0.4529,3850.5,3850.4,0.1296]
[1761903608151,0.9215,3850.5,3850.4,0.1296]
[1761903608351,0.4529,3850.5,3850.4,0.1296]
[1761903609028,0.0002,3850.5,3850.4,0.1296]
[1761903609229,0.0002,3850.5,3850.4,2.23209293]
[1761903609455,0.0002,3850.5,3850.4,0.87633966]
[1761903609764,0.0002,3850.5,3850.4,0.85036834]
[1761903610681,0.0002,3850.5,3850.4,0.4141]
[1761903612067,0.0002,3850.5,3850.4,2.23209293]
[1761903613501,0.0002,3850.5,3850.4,0.4141]
[1761903613799,0.0002,3850.5,3850.4,2.25806425]
[1761903614084,0.0002,3850.5,3850.4,2.23209293]
[1761903614297,0.0002,3850.5,3850.4,1.3600422]
[1761903614599,0.0002,3850.5,3850.4,3.17803513]
[1761903615156,0.0002,3850.5,3850.4,1.3600422]
[1761903616004,0.0004,3850.6,3850.4,1.3600422]
[1761903616577,0.0004,3850.6,3850.4,1.33407088]
[1761903616796,0.0004,3850.6,3850.5,1.08600989]
[1761903617201,0.0004,3850.6,3850.5,1.11198054]
[1761903617407,0.0004,3850.6,3850.5,1.08600989]
[1761903621407,0.0004,3850.6,3850.5,0.80150989]
[1761903621581,0.0004,3850.6,3850.4,0.15557132]
[1761903621582,0.4994,3850.6,3850.4,0.15557132]
[1761903621788,0.9794,3850.6,3850.4,0.15557132]
[1761903622506,0.4994,3850.6,3850.4,0.15557132]
[1761903622684,0.0004,3850.6,3850.5,0.31047065]
[1761903623009,0.0004,3850.6,3850.5,2.35422235]
[1761903623229,0.0004,3850.6,3850.5,9.30689567]
[1761903623525,0.0004,3850.6,3850.5,9.28092502]
[1761903624014,0.0004,3850.6,3850.5,9.38495447]
[1761903624809,0.0004,3850.6,3850.5,14.24794379]
[1761903624983,0.0004,3850.6,3850.5,9.38495447]
[1761903630712,0.0004,3850.6,3850.5,9.10045447]
[1761903631038,0.0004,3850.6,3850.5,9.38495447]
[1761903631241,0.0004,3850.6,3850.5,7.98527447]
[1761903631423,0.0004,3850.6,3850.5,2.43228115]
[1761903631626,0.4994,3850.6,3850.2,4.86298932]
[1761903631830,0.499,3850.3,3850.1,0.002]
[1761903632020,0.499,3850.2,3850.1,0.1989]
[1761903632345,0.499,3850.2,3850.1,0.002]
[1761903632641,0.4804,3850.6,3850.1,0.002]
[1761903632810,0.499,3850.2,3850.1,1.82012877]
[1761903633011,0.499,3850.2,3850.1,2.86053109]
[1761903633557,0.499,3850.2,3850.1,1.17200232]
[1761903633769,0.499,3850.2,3850.1,0.1316]
[1761903634417,0.499,3850.2,3850.1,1.94973459]
[1761903634630,0.48,3850.4,3850.3,1.81804015]
[1761903634960,0.499,3850.4,3850.3,1.97361215]
[1761903635432,0.0004,3850.6,3850.4,1.81796557]
[1761903635608,0.0004,3850.6,3850.5,1.84391637]
[1761903635813,0.4804,3850.6,3850.5,1.97351637]
[1761903636044,0.9794,3850.6,3850.5,0.15557065]
[1761903636246,0.9794,3850.6,3850.5,0.1296]
[1761903637419,0.9794,3850.6,3850.5,1.94754572]
[1761903637726,0.0004,3850.6,3850.5,6.81053504]
[1761903638660,0.4994,3850.6,3850.5,0.1296]
[1761903638961,0.9794,3850.6,3850.5,1.94754572]
[1761903639124,0.4994,3850.6,3850.5,1.94754572]
[1761903639930,0.9794,3850.6,3850.5,0.1296]
[1761903640749,1.81803921,3850.4,3850.1,0.002]
[1761903640962,0.4982,3850.2,3850.1,0.002]
[1761903641178,0.9782,3850.2,3850.1,0.002]
[1761903641357,2.79628737,3850.2,3850.1,0.002]
[1761903642150,2.92588737,3850.2,3850.1,0.002]
[1761903642979,1.1078,3850.2,3850.1,0.002]
[1761903644310,2.92588737,3850.2,3850.1,0.002]
[1761903646003,1.1078,3850.2,3850.1,0.002]
[1761903646518,2.92588737,3850.2,3850.1,0.002]
[1761903647017,3.02997935,3850.2,3850.1,0.002]
[1761903648315,1.21189198,3850.2,3850.1,0.002]
[1761903648706,3.02997935,3850.2,3850.1,0.002]
[1761903651616,1.21189198,3850.2,3850.1,0.002]
[1761903652920,3.02997935,3850.2,3850.1,0.002]
[1761903653088,1.21189198,3850.2,3850.1,0.002]
[1761903654891,1.21289198,3850.2,3850.1,0.002]
[1761903655613,3.03097935,3850.2,3850.1,0.002]
[1761903656986,1.21289198,3850.2,3850.1,0.002]
[1761903658135,0.23469198,3850.2,3850.1,0.002]
[1761903658426,0.001,3850.2,3850.1,0.002]
[1761903659945,0.001,3850.2,3850.1,2.10743459]
[1761903660119,0.001,3850.2,3850.1,0.98674239]
[1761903660317,0.001,3850.2,3850.1,2.80487698]
[1761903660513,0.001,3850.2,3850.1,7.6678663]
[1761903662417,0.001,3850.2,3850.1,8.05922633]
[1761903662948,0.001,3850.2,3850.1,7.77192633]
[1761903663152,0.001,3850.2,3850.1,8.05922633]
[1761903663351,0.001,3850.2,3850.1,8.46473033]
[1761903663552,0.001,3850.2,3850.1,9.86441033]
[1761903666255,0.0002,3850.2,3850.1,9.86441033]
[1761903668256,0.0002,3850.2,3850.1,9.99401033]
[1761903673669,0.0002,3850.2,3850.1,13.84401033]
[1761903673959,0.0004,3850.6,3850.5,2.22344972]
[1761903674165,0.0004,3850.6,3850.5,8.79938969]
[1761903674365,0.0004,3850.6,3850.5,13.92370836]
[1761903674568,0.0004,3850.6,3850.5,14.05330836]
[1761903675063,0.0004,3850.6,3850.5,14.15733781]
[1761903675262,0.0004,3850.6,3850.5,16.29651506]
[1761903675570,0.0004,3850.6,3850.5,12.03813207]
[1761903677347,1e-08,3850.9,3850.8,2.51060809]
[1761903677542,1e-08,3851.4,3851.3,4.05265209]
[1761903677746,1e-08,3851.4,3851.3,9.54621299]
[1761903678064,1e-08,3851.4,3851.3,10.04115663]
[1761903678570,5.46759565,3854.3,3851.6,2.51023052]
[1761903678571,1e-08,3851.7,3851.6,2.51023052]
[1761903678774,1e-08,3851.7,3851.6,3.90991052]
[1761903679069,1e-08,3851.7,3851.6,5.53862485]
[1761903679260,1e-08,3851.7,3851.6,5.51266162]
[1761903680054,0.1863,3853.1,3851.9,2.22278897]
[1761903680387,0.1863,3853.1,3851.9,9.37736462]
[1761903680540,0.1863,3853.1,3851.9,9.66466462]
[1761903680740,0.1863,3853.1,3851.9,11.06105164]
[1761903680964,0.1984,3852.9,3851.9,10.77375164]
[1761903681270,0.6492,3852.9,3851.9,11.06105164]
[1761903681993,0.1984,3852.9,3851.9,10.77375164]
[1761903682296,0.4568,3852.7,3851.9,11.71025164]
[1761903684595,0.006,3852.7,3851.9,11.71025164]
[1761903685704,0.006,3852.7,3851.9,11.42295164]
[1761903685906,0.006,3852.7,3851.9,11.71025164]
[1761903686202,0.4508,3852.5,3851.9,11.42295164]
[1761903686571,0.006,3852.7,3851.9,11.42295164]
[1761903686901,0.006,3852.7,3851.9,11.71025164]
[1761903687669,0.4568,3852.7,3851.9,11.42295164]
[1761903687874,0.4508,3852.5,3851.9,11.42295164]
[1761903688302,0.001,3852.4,3851.9,11.42295164]
[1761903689974,0.001,3852.4,3851.9,11.13565164]
[1761903690177,0.4518,3852.4,3851.9,11.13565164]
[1761903691095,0.4711,3852.0,3851.9,5.66805599]
[1761903691406,0.9211,3852.0,3851.9,2.46648497]
[1761903697342,0.9211,3852.0,3851.6,0.002]
[1761903697532,0.1984,3851.7,3851.6,1.81941444]
[1761903697734,0.6685,3851.7,3851.6,2.59952576]
[1761903697913,1.1193,3851.7,3851.6,0.002]
[1761903698114,1.1193,3851.7,3851.6,1.81942652]
[1761903701072,1.1193,3851.7,3851.6,0.002]
[1761903701462,1.1193,3851.7,3851.6,0.1316]
[1761903704667,2.93667933,3851.7,3851.6,0.002]
[1761903704870,4.33635933,3851.7,3851.6,0.002]
[1761903705167,4.33635933,3851.7,3850.9,0.002]
[1761903705168,0.4701,3851.4,3850.9,0.002]
[1761903705355,1.39968,3851.5,3850.9,0.002]
[1761903705356,0.4701,3851.0,3850.9,0.002]
[1761903705742,0.9209,3851.0,3850.9,0.002]
[1761903710761,0.4701,3851.0,3850.9,0.002]
[1761903711078,0.4509,3851.4,3850.9,0.002]
[1761903711279,0.4987,3851.0,3850.9,0.002]
[1761903711854,0.9496,3851.0,3850.9,0.002]
[1761903713761,0.4987,3851.0,3850.9,0.002]
[1761903713968,0.4987,3851.0,3850.9,1.81975688]
[1761903714670,0.4987,3851.0,3850.9,1.94935688]
[1761903715073,0.9496,3851.0,3850.9,1.94935688]
[1761903715605,0.9496,3851.0,3850.9,0.1316]
[1761903716100,0.9496,3851.0,3850.9,1.94935688]
[1761903716697,0.9488,3851.0,3850.9,1.94935688]
[1761903717006,0.4509,3851.4,3850.9,2.24145688]
[1761903717185,0.4509,3851.4,3850.9,0.4237]
[1761903717510,0.4509,3851.4,3851.3,0.1296]
[1761903717871,0.1984,3851.7,3851.3,0.2921]
[1761903718071,0.1984,3851.7,3851.4,2.42204512]
[1761903718273,0.1984,3851.7,3851.6,0.1296]
[1761903718605,0.6493,3851.7,3851.6,0.1296]
[1761903718807,1.148,3851.7,3851.6,0.1296]
[1761903719303,0.4987,3851.7,3851.6,0.1296]
[1761903719503,0.4511,3852.0,3851.6,0.1296]
[1761903719708,0.4987,3851.7,3851.4,1.81750503]
[1761903720010,0.4987,3851.7,3851.6,0.1296]
[1761903720377,0.9496,3851.7,3851.6,0.1296]
[1761903721079,0.0002,3852.0,3851.6,0.31806323]
[1761903721280,0.4511,3852.0,3851.8,1.81732903]
[1761903721508,0.4511,3852.0,3851.6,0.22066954]
[1761903721722,0.1874,3851.9,3851.6,0.22066954]
[1761903721877,0.001,3851.7,3851.6,0.22066954]
[1761903722077,0.001,3851.7,3851.6,0.19470631]
[1761903722277,0.001,3851.7,3851.6,2.01209069]
[1761903722897,0.001,3851.7,3851.6,2.01213283]
[1761903726702,0.001,3851.7,3851.6,9.57701248]
[1761903727291,0.001,3851.7,3851.6,9.86911248]
[1761903728827,0.001,3851.7,3851.6,9.97311704]
[1761903731130,0.001,3851.7,3851.6,10.10271704]
[1761903731326,0.001,3851.7,3851.6,9.81061704]
[1761903731533,0.001,3851.7,3851.6,10.10271704]
[1761903732200,0.001,3851.7,3851.6,9.81061704]
[1761903732404,0.001,3851.7,3851.6,10.10271704]
[1761903732652,0.001,3851.7,3851.6,9.81061704]
[1761903732944,0.001,3851.7,3851.6,4.34302139]
[1761903733301,0.001,3851.7,3851.6,4.05092139]
[1761903734947,0.9506,3851.7,3851.6,3.54141283]
[1761903735159,0.9506,3851.7,3851.6,3.34670652]
[1761903735536,0.9506,3851.7,3851.6,0.1296]
[1761903736544,0.9506,3851.7,3851.6,1.94702652]